[Event "Titled Tuesday Blitz November 07 Early 2023"]
[White "Khamdamova, Afruza"]
[Black "Nasuta, Grzegorz"]
[WhiteFideId "14210444"]
[BlackFideId "1141686"]
[WhiteElo "2519"]
[BlackElo "2667"]
[Result "0-1"]
[Round "8"]
[TimeControl "180+1"]
[Date "2023.11.07"]
[WhiteClock "0:00:04"]
[BlackClock "0:00:09"]
[Board "89"]

1. e4 {[%clk 0:03:00]}  c5 {[%clk 0:02:58]} 2. Nf3 {[%clk 0:03:01]}  d6 {[%clk 0:02:55]} 3. d4 {[%clk 0:03:00]}  cxd4 {[%clk 0:02:56]} 4. Nxd4 {[%clk 0:03:01]}  Nf6 {[%clk 0:02:55]} 5. Nc3 {[%clk 0:03:01]}  a6 {[%clk 0:02:55]} 6. Be2 {[%clk 0:03:00]}  e5 {[%clk 0:02:39]} 7. Nb3 {[%clk 0:03:00]}  Be6 {[%clk 0:02:35]} 8. O-O {[%clk 0:02:58]}  Be7 {[%clk 0:02:32]} 9. f4 {[%clk 0:02:58]}  exf4 {[%clk 0:02:24]} 10. Bxf4 {[%clk 0:02:58]}  Nc6 {[%clk 0:02:25]} 11. Kh1 {[%clk 0:02:57]}  O-O {[%clk 0:02:24]} 12. Nd5 {[%clk 0:02:54]}  Nxe4 {[%clk 0:02:07]} 13. Nxe7+ {[%clk 0:02:27]}  Nxe7 {[%clk 0:01:53]} 14. Bf3 {[%clk 0:02:20]}  d5 {[%clk 0:01:53]} 15. Nd4 {[%clk 0:02:20]}  Ng6 {[%clk 0:01:48]} 16. Be3 {[%clk 0:02:16]}  Re8 {[%clk 0:01:46]} 17. c3 {[%clk 0:01:59]}  Qh4 {[%clk 0:01:42]} 18. Kg1 {[%clk 0:01:46]}  Rad8 {[%clk 0:01:36]} 19. Qc2 {[%clk 0:01:26]}  Ne5 {[%clk 0:01:28]} 20. Be2 {[%clk 0:01:18]}  Ng4 {[%clk 0:01:03]} 21. Bf4 {[%clk 0:01:15]}  h6 {[%clk 0:00:56]} 22. Bxg4 {[%clk 0:01:04]}  Bxg4 {[%clk 0:00:53]} 23. Rae1 {[%clk 0:01:03]}  Qe7 {[%clk 0:00:47]} 24. h3 {[%clk 0:00:58]}  Bh5 {[%clk 0:00:43]} 25. Nf5 {[%clk 0:00:51]}  Qd7 {[%clk 0:00:34]} 26. Nd4 {[%clk 0:00:45]}  Bg6 {[%clk 0:00:34]} 27. Qd1 {[%clk 0:00:43]}  Re7 {[%clk 0:00:27]} 28. Qf3 {[%clk 0:00:37]}  Rde8 {[%clk 0:00:26]} 29. Re3 {[%clk 0:00:30]}  Kh7 {[%clk 0:00:24]} 30. Rfe1 {[%clk 0:00:29]}  f6 {[%clk 0:00:24]} 31. Qf1 {[%clk 0:00:27]}  Qc8 {[%clk 0:00:20]} 32. Bh2 {[%clk 0:00:27]}  Nd2 {[%clk 0:00:20]} 33. Qf2 {[%clk 0:00:25]}  Rxe3 {[%clk 0:00:20]} 34. Rxe3 {[%clk 0:00:25]}  Rxe3 {[%clk 0:00:19]} 35. Qxe3 {[%clk 0:00:25]}  Ne4 {[%clk 0:00:20]} 36. Qe2 {[%clk 0:00:22]}  Qc4 {[%clk 0:00:18]} 37. Qxc4 {[%clk 0:00:22]}  dxc4 {[%clk 0:00:19]} 38. Bf4 {[%clk 0:00:21]}  Nc5 {[%clk 0:00:19]} 39. Bd6 {[%clk 0:00:18]}  Na4 {[%clk 0:00:19]} 40. Ba3 {[%clk 0:00:18]}  Bb1 {[%clk 0:00:19]} 41. Nf3 {[%clk 0:00:12]}  Bxa2 {[%clk 0:00:19]} 42. Nd2 {[%clk 0:00:12]}  Bb3 {[%clk 0:00:19]} 43. Kf2 {[%clk 0:00:12]}  b5 {[%clk 0:00:18]} 44. Ke3 {[%clk 0:00:09]}  Bc2 {[%clk 0:00:19]} 45. g4 {[%clk 0:00:09]}  Kg6 {[%clk 0:00:19]} 46. Nf3 {[%clk 0:00:09]}  Kf7 {[%clk 0:00:17]} 47. Kd4 {[%clk 0:00:08]}  Bd3 {[%clk 0:00:15]} 48. Ke3 {[%clk 0:00:08]}  g5 {[%clk 0:00:14]} 49. Kf2 {[%clk 0:00:06]}  f5 {[%clk 0:00:11]} 50. gxf5 {[%clk 0:00:04]}  Bxf5 {[%clk 0:00:11]} 51. Kg3 {[%clk 0:00:05]}  Bd7 {[%clk 0:00:08]} 52. Nd4 {[%clk 0:00:05]}  Kf6 {[%clk 0:00:08]} 53. h4 {[%clk 0:00:05]}  gxh4+ {[%clk 0:00:07]} 54. Kxh4 {[%clk 0:00:05]}  Ke5 {[%clk 0:00:07]} 55. Kh5 {[%clk 0:00:05]}  a5 {[%clk 0:00:07]} 56. Kxh6 {[%clk 0:00:04]}  b4 {[%clk 0:00:07]} 57. cxb4 {[%clk 0:00:04]}  axb4 {[%clk 0:00:08]} 58. Bxb4 {[%clk 0:00:05]}  Kxd4 {[%clk 0:00:08]} 59. Ba3 {[%clk 0:00:03]}  Kd3 {[%clk 0:00:09]} 60. Kg5 {[%clk 0:00:03]}  Kc2 {[%clk 0:00:09]} 61. Kf4 {[%clk 0:00:04]}  Nxb2 {[%clk 0:00:10]} 62. Ke3 {[%clk 0:00:04]}  Kb3 {[%clk 0:00:09]} 63. Bd6 {[%clk 0:00:03]}  c3 {[%clk 0:00:09]} 64. Ke2 {[%clk 0:00:03]}  c2 {[%clk 0:00:09]} 65. Bf4 {[%clk 0:00:03]}  Nc4 {[%clk 0:00:08]} 66. Bc1 {[%clk 0:00:03]}  Bf5 {[%clk 0:00:08]} 67. Kf3 {[%clk 0:00:02]}  Bh7 {[%clk 0:00:08]} 68. Ke2 {[%clk 0:00:02]}  Ka2 {[%clk 0:00:08]} 69. Bf4 {[%clk 0:00:02]}  Kb1 {[%clk 0:00:08]} 70. Bg5 {[%clk 0:00:02]}  Na3 {[%clk 0:00:07]} 71. Bd2 {[%clk 0:00:01]}  Nb5 {[%clk 0:00:06]} 72. Bf4 {[%clk 0:00:01]}  c1=Q {[%clk 0:00:06]} 73. Bxc1 {[%clk 0:00:01]}  Kxc1 {[%clk 0:00:07]} 74. Ke3 {[%clk 0:00:02]}  Kc2 {[%clk 0:00:07]} 75. Kf4 {[%clk 0:00:02]}  Kd3 {[%clk 0:00:07]} 76. Ke5 {[%clk 0:00:03]}  Be4 {[%clk 0:00:07]} 77. Ke6 {[%clk 0:00:04]}  Kd4 {[%clk 0:00:08]} 78. Kf6 {[%clk 0:00:04]}  Kd5 {[%clk 0:00:07]} 79. Kg5 {[%clk 0:00:04]}  Ke5 {[%clk 0:00:08]} 80. Kh6 {[%clk 0:00:04]}  Kf6 {[%clk 0:00:07]} 81. Kh5 {[%clk 0:00:05]}  Nd4 {[%clk 0:00:07]} 82. Kg4 {[%clk 0:00:05]}  Ke5 {[%clk 0:00:07]} 83. Kg5 {[%clk 0:00:06]}  Bf5 {[%clk 0:00:07]} 84. Kh6 {[%clk 0:00:06]}  Kf6 {[%clk 0:00:07]} 85. Kh5 {[%clk 0:00:06]}  Nf3 {[%clk 0:00:06]} 86. Kh6 {[%clk 0:00:06]}  Be6 {[%clk 0:00:06]} 87. Kh7 {[%clk 0:00:06]}  Ne5 {[%clk 0:00:05]} 88. Kh8 {[%clk 0:00:06]}  Ng6+ {[%clk 0:00:06]} 89. Kh7 {[%clk 0:00:06]}  Bd5 {[%clk 0:00:06]} 90. Kh6 {[%clk 0:00:06]}  Bg8 {[%clk 0:00:07]} 91. Kh5 {[%clk 0:00:06]}  Ne5 {[%clk 0:00:05]} 92. Kh6 {[%clk 0:00:06]}  Ng4+ {[%clk 0:00:04]} 93. Kh5 {[%clk 0:00:06]}  Kf5 {[%clk 0:00:05]} 94. Kh4 {[%clk 0:00:06]}  Bd5 {[%clk 0:00:04]} 95. Kg3 {[%clk 0:00:05]}  Bc6 {[%clk 0:00:04]} 96. Kh4 {[%clk 0:00:04]}  Kf4 {[%clk 0:00:04]} 97. Kh5 {[%clk 0:00:05]}  Be8+ {[%clk 0:00:05]} 98. Kh4 {[%clk 0:00:05]}  Bg6 {[%clk 0:00:05]} 99. Kh3 {[%clk 0:00:05]}  Ne3 {[%clk 0:00:06]} 100. Kh4 {[%clk 0:00:05]}  Ng2+ {[%clk 0:00:06]} 101. Kh3 {[%clk 0:00:05]}  Kf3 {[%clk 0:00:06]} 102. Kh2 {[%clk 0:00:06]}  Kf2 {[%clk 0:00:07]} 103. Kh3 {[%clk 0:00:06]}  Bf5+ {[%clk 0:00:08]} 104. Kh2 {[%clk 0:00:06]}  Ne3 {[%clk 0:00:07]} 105. Kh1 {[%clk 0:00:07]}  Be6 {[%clk 0:00:08]} 106. Kh2 {[%clk 0:00:04]}  Nf1+ {[%clk 0:00:09]} 0-1


[Site "https://www.chess.com"]

[Event "Titled Tuesday Blitz November 07 Early 2023"]
[White "Tregubov, Pavel V."]
[Black "Baches Garcia, Guillermo"]
[WhiteFideId "4115341"]
[BlackFideId "2209764"]
[WhiteElo "2608"]
[BlackElo "2491"]
[Result "1-0"]
[Round "8"]
[TimeControl "180+1"]
[Date "2023.11.07"]
[WhiteClock "0:00:22"]
[BlackClock "0:00:04"]
[Board "92"]

1. e4 {[%clk 0:03:00]}  d5 {[%clk 0:03:00]} 2. exd5 {[%clk 0:03:00]}  Qxd5 {[%clk 0:03:01]} 3. Nc3 {[%clk 0:02:58]}  Qa5 {[%clk 0:03:01]} 4. d4 {[%clk 0:02:58]}  Nf6 {[%clk 0:03:01]} 5. Nf3 {[%clk 0:02:57]}  Bf5 {[%clk 0:03:01]} 6. Ne5 {[%clk 0:02:48]}  c6 {[%clk 0:03:01]} 7. Bc4 {[%clk 0:02:39]}  e6 {[%clk 0:03:00]} 8. g4 {[%clk 0:02:39]}  Bg6 {[%clk 0:03:00]} 9. h4 {[%clk 0:02:39]}  Nbd7 {[%clk 0:03:01]} 10. Nxd7 {[%clk 0:02:33]}  Nxd7 {[%clk 0:03:02]} 11. h5 {[%clk 0:02:29]}  Be4 {[%clk 0:03:01]} 12. f3 {[%clk 0:02:28]}  Bd5 {[%clk 0:02:59]} 13. Bxd5 {[%clk 0:02:23]}  cxd5 {[%clk 0:02:53]} 14. Qd3 {[%clk 0:02:16]}  Bd6 {[%clk 0:02:48]} 15. Bd2 {[%clk 0:02:09]}  Bg3+ {[%clk 0:02:19]} 16. Ke2 {[%clk 0:02:09]}  Qc7 {[%clk 0:02:17]} 17. Rag1 {[%clk 0:02:01]}  Bf4 {[%clk 0:02:04]} 18. Kd1 {[%clk 0:01:59]}  a6 {[%clk 0:01:56]} 19. Kc1 {[%clk 0:01:29]}  O-O-O {[%clk 0:01:52]} 20. Kb1 {[%clk 0:01:25]}  Kb8 {[%clk 0:01:52]} 21. Na4 {[%clk 0:01:17]}  Rc8 {[%clk 0:01:44]} 22. Rc1 {[%clk 0:01:14]}  Bxd2 {[%clk 0:01:32]} 23. Qxd2 {[%clk 0:01:14]}  Qd6 {[%clk 0:01:30]} 24. Rhe1 {[%clk 0:01:03]}  Rc4 {[%clk 0:01:19]} 25. b3 {[%clk 0:01:03]}  Rxa4 {[%clk 0:01:19]} 26. bxa4 {[%clk 0:01:02]}  Nb6 {[%clk 0:01:19]} 27. Ka1 {[%clk 0:00:47]}  Rc8 {[%clk 0:01:09]} 28. Rb1 {[%clk 0:00:45]}  Nxa4 {[%clk 0:01:03]} 29. Rb3 {[%clk 0:00:42]}  Rc4 {[%clk 0:00:57]} 30. Reb1 {[%clk 0:00:36]}  b5 {[%clk 0:00:52]} 31. Rb4 {[%clk 0:00:36]}  Nb6 {[%clk 0:00:35]} 32. Rxc4 {[%clk 0:00:33]}  dxc4 {[%clk 0:00:26]} 33. Qe3 {[%clk 0:00:23]}  Qa3 {[%clk 0:00:04]} 34. Qxa3 {[%clk 0:00:22]} 1-0


[Site "https://www.chess.com"]

[Event "Titled Tuesday Blitz November 07 Early 2023"]
[White "Devaev, Alexander"]
[Black "Ambartsumova, Karina"]
[WhiteFideId "4169395"]
[BlackFideId "4166299"]
[WhiteElo "2474"]
[BlackElo "2605"]
[Result "1/2-1/2"]
[Round "8"]
[TimeControl "180+1"]
[Date "2023.11.07"]
[WhiteClock "0:00:11"]
[BlackClock "0:00:04"]
[Board "95"]

1. Nf3 {[%clk 0:02:51]}  Nf6 {[%clk 0:02:59]} 2. c4 {[%clk 0:02:48]}  e6 {[%clk 0:02:59]} 3. Nc3 {[%clk 0:02:48]}  d5 {[%clk 0:02:59]} 4. d4 {[%clk 0:02:48]}  Bb4 {[%clk 0:02:59]} 5. e3 {[%clk 0:02:42]}  O-O {[%clk 0:02:57]} 6. Bd2 {[%clk 0:02:35]}  c5 {[%clk 0:02:57]} 7. a3 {[%clk 0:02:34]}  Bxc3 {[%clk 0:02:56]} 8. Bxc3 {[%clk 0:02:35]}  Ne4 {[%clk 0:02:54]} 9. Rc1 {[%clk 0:02:34]}  cxd4 {[%clk 0:02:34]} 10. Qxd4 {[%clk 0:01:56]}  Nxc3 {[%clk 0:02:33]} 11. Rxc3 {[%clk 0:01:55]}  Nc6 {[%clk 0:02:33]} 12. Qd2 {[%clk 0:01:54]}  dxc4 {[%clk 0:02:22]} 13. Bxc4 {[%clk 0:01:47]}  Qf6 {[%clk 0:02:22]} 14. O-O {[%clk 0:01:45]}  Rd8 {[%clk 0:02:08]} 15. Qc2 {[%clk 0:01:25]}  e5 {[%clk 0:02:08]} 16. Bb5 {[%clk 0:01:19]}  Bf5 {[%clk 0:01:56]} 17. Qc1 {[%clk 0:00:56]}  Ne7 {[%clk 0:01:32]} 18. Rd1 {[%clk 0:00:42]}  a6 {[%clk 0:01:19]} 19. Be2 {[%clk 0:00:37]}  Rxd1+ {[%clk 0:01:16]} 20. Qxd1 {[%clk 0:00:36]}  Nc6 {[%clk 0:01:16]} 21. Qc1 {[%clk 0:00:29]}  h6 {[%clk 0:01:06]} 22. h3 {[%clk 0:00:27]}  Be4 {[%clk 0:01:03]} 23. Nd2 {[%clk 0:00:25]}  Bd5 {[%clk 0:01:03]} 24. Bc4 {[%clk 0:00:12]}  Rd8 {[%clk 0:00:57]} 25. Bxd5 {[%clk 0:00:11]}  Rxd5 {[%clk 0:00:58]} 26. Nf3 {[%clk 0:00:07]}  e4 {[%clk 0:00:47]} 27. Nd2 {[%clk 0:00:07]}  Qg6 {[%clk 0:00:44]} 28. Nf1 {[%clk 0:00:07]}  Ne5 {[%clk 0:00:36]} 29. Rc5 {[%clk 0:00:07]}  Nd3 {[%clk 0:00:34]} 30. Rc8+ {[%clk 0:00:07]}  Kh7 {[%clk 0:00:35]} 31. Qc4 {[%clk 0:00:07]}  Rg5 {[%clk 0:00:21]} 32. g3 {[%clk 0:00:05]}  h5 {[%clk 0:00:19]} 33. Qd4 {[%clk 0:00:03]}  Ne5 {[%clk 0:00:13]} 34. Qd8 {[%clk 0:00:04]}  Kh6 {[%clk 0:00:08]} 35. Qh8+ {[%clk 0:00:04]}  Qh7 {[%clk 0:00:08]} 36. h4 {[%clk 0:00:04]}  Rf5 {[%clk 0:00:07]} 37. Nd2 {[%clk 0:00:04]}  Nf3+ {[%clk 0:00:07]} 38. Nxf3 {[%clk 0:00:04]}  exf3 {[%clk 0:00:08]} 39. Qxh7+ {[%clk 0:00:04]}  Kxh7 {[%clk 0:00:09]} 40. Rc7 {[%clk 0:00:04]}  Rb5 {[%clk 0:00:09]} 41. b4 {[%clk 0:00:04]}  Kg6 {[%clk 0:00:09]} 42. Kh2 {[%clk 0:00:04]}  a5 {[%clk 0:00:10]} 43. Rc4 {[%clk 0:00:04]}  axb4 {[%clk 0:00:09]} 44. axb4 {[%clk 0:00:05]}  Rd5 {[%clk 0:00:06]} 45. g4 {[%clk 0:00:04]}  hxg4 {[%clk 0:00:02]} 46. Rxg4+ {[%clk 0:00:04]}  Kh5 {[%clk 0:00:03]} 47. Rf4 {[%clk 0:00:04]}  f5 {[%clk 0:00:02]} 48. Kg3 {[%clk 0:00:05]}  g6 {[%clk 0:00:03]} 49. Kxf3 {[%clk 0:00:05]}  Rd1 {[%clk 0:00:03]} 50. Rd4 {[%clk 0:00:05]}  Rb1 {[%clk 0:00:02]} 51. Rc4 {[%clk 0:00:05]}  Rb2 {[%clk 0:00:03]} 52. Kg3 {[%clk 0:00:06]}  Kh6 {[%clk 0:00:03]} 53. Rd4 {[%clk 0:00:05]}  Kh5 {[%clk 0:00:03]} 54. f3 {[%clk 0:00:06]}  Kh6 {[%clk 0:00:04]} 55. e4 {[%clk 0:00:07]}  fxe4 {[%clk 0:00:04]} 56. Rxe4 {[%clk 0:00:07]}  Kg7 {[%clk 0:00:04]} 57. Rd4 {[%clk 0:00:08]}  Kf6 {[%clk 0:00:04]} 58. Kf4 {[%clk 0:00:08]}  Rb3 {[%clk 0:00:04]} 59. Rd6+ {[%clk 0:00:08]}  Ke7 {[%clk 0:00:03]} 60. Rb6 {[%clk 0:00:09]}  Kf8 {[%clk 0:00:03]} 61. Rxb7 {[%clk 0:00:10]}  Rb1 {[%clk 0:00:03]} 62. Rb6 {[%clk 0:00:10]}  Kf7 {[%clk 0:00:03]} 63. b5 {[%clk 0:00:10]}  Kg7 {[%clk 0:00:04]} 64. Kg4 {[%clk 0:00:10]}  Kh6 {[%clk 0:00:04]} 65. Kf4 {[%clk 0:00:09]}  Kh5 {[%clk 0:00:04]} 66. Rb8 {[%clk 0:00:09]}  Rb4+ {[%clk 0:00:03]} 67. Kg3 {[%clk 0:00:09]}  Kh6 {[%clk 0:00:02]} 68. Rh8+ {[%clk 0:00:09]}  Kg7 {[%clk 0:00:03]} 69. Rb8 {[%clk 0:00:10]}  Kh6 {[%clk 0:00:03]} 70. Rb6 {[%clk 0:00:10]}  Kh5 {[%clk 0:00:03]} 71. Rb8 {[%clk 0:00:11]}  Kh6 {[%clk 0:00:04]} 1/2-1/2


[Site "https://www.chess.com"]

[Event "Titled Tuesday Blitz November 07 Early 2023"]
[White "LangesNasenhaar"]
[Black "Tasev, Dejan"]
[BlackFideId "936618"]
[WhiteElo "2435"]
[BlackElo "2602"]
[Result "0-1"]
[Round "8"]
[TimeControl "180+1"]
[Date "2023.11.07"]
[WhiteClock "0:00:13"]
[BlackClock "0:00:18"]
[Board "97"]

1. d4 {[%clk 0:03:00]}  Nf6 {[%clk 0:02:58]} 2. Nc3 {[%clk 0:03:01]}  d5 {[%clk 0:02:57]} 3. Bf4 {[%clk 0:03:01]}  c6 {[%clk 0:02:57]} 4. e3 {[%clk 0:03:01]}  Bf5 {[%clk 0:02:57]} 5. Nf3 {[%clk 0:03:02]}  Nbd7 {[%clk 0:02:56]} 6. Ne5 {[%clk 0:03:02]}  e6 {[%clk 0:02:53]} 7. g4 {[%clk 0:03:02]}  Bg6 {[%clk 0:02:53]} 8. h4 {[%clk 0:03:02]}  Nxe5 {[%clk 0:02:48]} 9. dxe5 {[%clk 0:03:01]}  Ne4 {[%clk 0:02:41]} 10. Nxe4 {[%clk 0:03:01]}  Bxe4 {[%clk 0:02:31]} 11. f3 {[%clk 0:03:01]}  Qb6 {[%clk 0:02:22]} 12. fxe4 {[%clk 0:02:57]}  Qxb2 {[%clk 0:02:19]} 13. Rb1 {[%clk 0:02:48]}  Qc3+ {[%clk 0:02:14]} 14. Qd2 {[%clk 0:02:47]}  Qxd2+ {[%clk 0:02:11]} 15. Kxd2 {[%clk 0:02:47]}  dxe4 {[%clk 0:02:04]} 16. Rxb7 {[%clk 0:02:43]}  O-O-O+ {[%clk 0:02:03]} 17. Kc3 {[%clk 0:02:38]}  Kxb7 {[%clk 0:02:02]} 18. Bg2 {[%clk 0:02:38]}  Bc5 {[%clk 0:01:56]} 19. Bxe4 {[%clk 0:02:37]}  Kc7 {[%clk 0:01:54]} 20. g5 {[%clk 0:02:30]}  g6 {[%clk 0:01:54]} 21. h5 {[%clk 0:02:30]}  Rhe8 {[%clk 0:01:50]} 22. Bd3 {[%clk 0:02:19]}  Rb8 {[%clk 0:01:46]} 23. Bc4 {[%clk 0:02:04]}  Red8 {[%clk 0:01:39]} 24. Rf1 {[%clk 0:01:54]}  Bb4+ {[%clk 0:01:32]} 25. Kb3 {[%clk 0:01:53]}  Ba5+ {[%clk 0:01:18]} 26. Ka3 {[%clk 0:01:53]}  Rd7 {[%clk 0:01:12]} 27. Bb3 {[%clk 0:01:46]}  Bc3 {[%clk 0:01:05]} 28. Rf3 {[%clk 0:01:29]}  Rb6 {[%clk 0:00:58]} 29. Bg3 {[%clk 0:01:15]}  Ra6+ {[%clk 0:00:51]} 30. Ba4 {[%clk 0:01:16]}  Rb6 {[%clk 0:00:50]} 31. Bb3 {[%clk 0:01:14]}  c5 {[%clk 0:00:45]} 32. Rf4 {[%clk 0:01:05]}  Rb4 {[%clk 0:00:35]} 33. Rf3 {[%clk 0:00:52]}  Re4 {[%clk 0:00:27]} 34. Ba4 {[%clk 0:00:46]}  Rd1 {[%clk 0:00:25]} 35. Rxf7+ {[%clk 0:00:41]}  Kb6 {[%clk 0:00:25]} 36. Re7 {[%clk 0:00:31]}  Rb1 {[%clk 0:00:23]} 37. Bd7 {[%clk 0:00:13]}  Bb2+ {[%clk 0:00:19]} 38. Kb3 {[%clk 0:00:13]}  Rb4# {[%clk 0:00:18]} 0-1


[Site "https://www.chess.com"]

[Event "Titled Tuesday Blitz November 07 Early 2023"]
[White "Demin, Vladimir"]
[Black "Muhammad Shahzeb"]
[WhiteFideId "4167457"]
[BlackFideId "7804806"]
[WhiteElo "2556"]
[BlackElo "2412"]
[Result "1-0"]
[Round "8"]
[TimeControl "180+1"]
[Date "2023.11.07"]
[WhiteClock "0:00:12"]
[BlackClock "0:00:14"]
[Board "100"]

1. d4 {[%clk 0:01:49]}  Nf6 {[%clk 0:02:46]} 2. Nc3 {[%clk 0:01:47]}  d5 {[%clk 0:02:45]} 3. Bf4 {[%clk 0:01:46]}  a6 {[%clk 0:02:38]} 4. e3 {[%clk 0:01:44]}  e6 {[%clk 0:02:37]} 5. g4 {[%clk 0:01:31]}  Bb4 {[%clk 0:02:33]} 6. Bg2 {[%clk 0:01:26]}  Ne4 {[%clk 0:02:24]} 7. Bxe4 {[%clk 0:01:20]}  dxe4 {[%clk 0:02:24]} 8. Ne2 {[%clk 0:01:21]}  Nd7 {[%clk 0:02:12]} 9. a3 {[%clk 0:01:17]}  Bxc3+ {[%clk 0:02:03]} 10. Nxc3 {[%clk 0:01:18]}  Nf6 {[%clk 0:01:59]} 11. g5 {[%clk 0:01:16]}  Nd5 {[%clk 0:01:59]} 12. Nxe4 {[%clk 0:01:10]}  Nxf4 {[%clk 0:01:57]} 13. exf4 {[%clk 0:01:10]}  Qd5 {[%clk 0:01:53]} 14. Qd3 {[%clk 0:01:09]}  b5 {[%clk 0:01:50]} 15. O-O-O {[%clk 0:01:03]}  Bb7 {[%clk 0:01:50]} 16. Rhe1 {[%clk 0:01:01]}  O-O {[%clk 0:01:49]} 17. Kb1 {[%clk 0:00:57]}  Qf5 {[%clk 0:01:46]} 18. Nc5 {[%clk 0:00:54]}  Qd5 {[%clk 0:01:38]} 19. Re5 {[%clk 0:00:52]}  Qc6 {[%clk 0:01:36]} 20. f5 {[%clk 0:00:51]}  exf5 {[%clk 0:01:31]} 21. Qxf5 {[%clk 0:00:44]}  Bc8 {[%clk 0:01:28]} 22. Qf4 {[%clk 0:00:43]}  a5 {[%clk 0:01:22]} 23. Re7 {[%clk 0:00:42]}  b4 {[%clk 0:01:13]} 24. Rxc7 {[%clk 0:00:41]}  Qd5 {[%clk 0:01:01]} 25. Qe4 {[%clk 0:00:34]}  Qd6 {[%clk 0:00:43]} 26. Qe5 {[%clk 0:00:28]}  Qg6 {[%clk 0:00:34]} 27. a4 {[%clk 0:00:24]}  Bf5 {[%clk 0:00:27]} 28. Nd7 {[%clk 0:00:17]}  Rfc8 {[%clk 0:00:21]} 29. Rc1 {[%clk 0:00:10]}  Qxg5 {[%clk 0:00:13]} 30. f4 {[%clk 0:00:05]}  Qg6 {[%clk 0:00:13]} 31. Nb6 {[%clk 0:00:04]}  Rxc7 {[%clk 0:00:11]} 32. Qxc7 {[%clk 0:00:04]}  Re8 {[%clk 0:00:10]} 33. d5 {[%clk 0:00:04]}  h6 {[%clk 0:00:08]} 34. d6 {[%clk 0:00:04]}  Qe6 {[%clk 0:00:05]} 35. d7 {[%clk 0:00:04]}  Rf8 {[%clk 0:00:04]} 36. d8=Q {[%clk 0:00:04]}  Rxd8 {[%clk 0:00:03]} 37. Qxd8+ {[%clk 0:00:05]}  Kh7 {[%clk 0:00:03]} 38. Nd5 {[%clk 0:00:04]}  b3 {[%clk 0:00:04]} 39. Nc3 {[%clk 0:00:03]}  bxc2+ {[%clk 0:00:03]} 40. Ka1 {[%clk 0:00:03]}  Qb3 {[%clk 0:00:03]} 41. Qd4 {[%clk 0:00:03]}  Be6 {[%clk 0:00:04]} 42. f5 {[%clk 0:00:02]}  Bc4 {[%clk 0:00:03]} 43. Qe4 {[%clk 0:00:02]}  Qb4 {[%clk 0:00:03]} 44. f6+ {[%clk 0:00:02]}  g6 {[%clk 0:00:04]} 45. Qe7 {[%clk 0:00:02]}  Bb3 {[%clk 0:00:05]} 46. Qxb4 {[%clk 0:00:02]}  axb4 {[%clk 0:00:05]} 47. Nb5 {[%clk 0:00:02]}  Bxa4 {[%clk 0:00:06]} 48. Nd4 {[%clk 0:00:03]}  Bb3 {[%clk 0:00:06]} 49. Nxb3 {[%clk 0:00:03]}  g5 {[%clk 0:00:06]} 50. Nd4 {[%clk 0:00:04]}  Kg6 {[%clk 0:00:07]} 51. Nxc2 {[%clk 0:00:04]}  Kxf6 {[%clk 0:00:07]} 52. Nxb4 {[%clk 0:00:05]}  Kg6 {[%clk 0:00:08]} 53. Rd1 {[%clk 0:00:05]}  f5 {[%clk 0:00:09]} 54. Nc2 {[%clk 0:00:06]}  f4 {[%clk 0:00:10]} 55. b4 {[%clk 0:00:06]}  g4 {[%clk 0:00:11]} 56. b5 {[%clk 0:00:07]}  g3 {[%clk 0:00:11]} 57. hxg3 {[%clk 0:00:08]}  fxg3 {[%clk 0:00:12]} 58. b6 {[%clk 0:00:08]}  g2 {[%clk 0:00:13]} 59. b7 {[%clk 0:00:09]}  h5 {[%clk 0:00:14]} 60. b8=Q {[%clk 0:00:09]}  h4 {[%clk 0:00:15]} 61. Qg8+ {[%clk 0:00:10]}  Kh5 {[%clk 0:00:15]} 62. Qxg2 {[%clk 0:00:11]}  h3 {[%clk 0:00:16]} 63. Qxh3+ {[%clk 0:00:11]}  Kg5 {[%clk 0:00:14]} 64. Qf3 {[%clk 0:00:12]} 1-0


[Site "https://www.chess.com"]

[Event "Titled Tuesday Blitz November 07 Early 2023"]
[White "Dishman, Stephen"]
[Black "Goltseva, Ekaterina"]
[WhiteFideId "403024"]
[BlackFideId "24173770"]
[WhiteElo "2377"]
[BlackElo "2542"]
[Result "1-0"]
[Round "8"]
[TimeControl "180+1"]
[Date "2023.11.07"]
[WhiteClock "0:00:17"]
[BlackClock "0:00:00"]
[Board "101"]

1. d4 {[%clk 0:03:00]}  Nf6 {[%clk 0:01:18]} 2. Bg5 {[%clk 0:03:00]}  Ne4 {[%clk 0:01:18]} 3. Bf4 {[%clk 0:02:59]}  d5 {[%clk 0:01:19]} 4. e3 {[%clk 0:02:59]}  c5 {[%clk 0:01:19]} 5. Bd3 {[%clk 0:02:59]}  Nf6 {[%clk 0:01:20]} 6. c3 {[%clk 0:02:59]}  Nc6 {[%clk 0:01:21]} 7. Nd2 {[%clk 0:02:58]}  e6 {[%clk 0:01:19]} 8. Ngf3 {[%clk 0:02:57]}  Be7 {[%clk 0:01:20]} 9. h4 {[%clk 0:02:51]}  h6 {[%clk 0:01:17]} 10. Ne5 {[%clk 0:02:48]}  Qb6 {[%clk 0:01:14]} 11. Rb1 {[%clk 0:02:46]}  Nxe5 {[%clk 0:01:14]} 12. dxe5 {[%clk 0:02:45]}  Nd7 {[%clk 0:01:14]} 13. Qg4 {[%clk 0:02:39]}  g6 {[%clk 0:01:08]} 14. h5 {[%clk 0:02:25]}  g5 {[%clk 0:01:08]} 15. Bg3 {[%clk 0:02:25]}  c4 {[%clk 0:00:52]} 16. Bc2 {[%clk 0:02:23]}  Nc5 {[%clk 0:00:51]} 17. O-O {[%clk 0:02:22]}  f5 {[%clk 0:00:37]} 18. exf6 {[%clk 0:02:21]}  Bxf6 {[%clk 0:00:37]} 19. e4 {[%clk 0:02:11]}  O-O {[%clk 0:00:16]} 20. e5 {[%clk 0:02:05]}  Bg7 {[%clk 0:00:16]} 21. b4 {[%clk 0:01:57]}  cxb3 {[%clk 0:00:15]} 22. axb3 {[%clk 0:01:58]}  Bd7 {[%clk 0:00:15]} 23. b4 {[%clk 0:01:56]}  Na4 {[%clk 0:00:15]} 24. c4 {[%clk 0:01:29]}  Nc3 {[%clk 0:00:14]} 25. c5 {[%clk 0:01:22]}  Qc7 {[%clk 0:00:13]} 26. Rbe1 {[%clk 0:01:13]}  a5 {[%clk 0:00:11]} 27. f4 {[%clk 0:01:03]}  Qd8 {[%clk 0:00:05]} 28. f5 {[%clk 0:00:59]}  exf5 {[%clk 0:00:05]} 29. Bxf5 {[%clk 0:00:59]}  Bxf5 {[%clk 0:00:05]} 30. Rxf5 {[%clk 0:01:00]}  Qc8 {[%clk 0:00:03]} 31. e6 {[%clk 0:00:58]}  Rxf5 {[%clk 0:00:02]} 32. Qxf5 {[%clk 0:00:58]}  Qf8 {[%clk 0:00:03]} 33. Qd3 {[%clk 0:00:47]}  Qe7 {[%clk 0:00:03]} 34. Be5 {[%clk 0:00:45]}  Bxe5 {[%clk 0:00:02]} 35. Rxe5 {[%clk 0:00:46]}  axb4 {[%clk 0:00:03]} 36. Nb3 {[%clk 0:00:39]}  Rf8 {[%clk 0:00:02]} 37. Nd4 {[%clk 0:00:35]}  Qf6 {[%clk 0:00:02]} 38. e7 {[%clk 0:00:21]}  Re8 {[%clk 0:00:02]} 39. Re6 {[%clk 0:00:19]}  Qf7 {[%clk 0:00:02]} 40. Rg6+ {[%clk 0:00:17]}  Kh8 {[%clk 0:00:02]} 41. Rxh6+ {[%clk 0:00:17]}  Kg8 {[%clk 0:00:03]} 42. Rg6+ {[%clk 0:00:18]}  Kh8 {[%clk 0:00:03]} 43. Nf5 {[%clk 0:00:17]}  Ne4 {[%clk 0:00:00]} 44. Qd4+ {[%clk 0:00:17]} 1-0


[Site "https://www.chess.com"]